[Event "Asian Amateur-ch Open 2022"]
[Site "Muscat"]
[Date "2022.10.04"]
[Round "8.7"]
[White "Shreyas Seshadri Nallore"]
[Black "Khayat, Emad"]
[Result "1-0"]
[ECO "C45"]
[WhiteElo "1791"]
[BlackElo "1597"]
[Annotator "NA RC COMBH"]
[PlyCount "113"]
[EventDate "2022.09.29"]
[EventType "swiss"]
[EventCountry "OMN"]
[SourceTitle "playchess.com"]
[Source "ChessBase"]
[SourceQuality "1"]
[TimeControl "5400+30"]

1. e4 {[%emt 0:00:05]} e5 {[%emt 0:00:06]} 2. Nf3 {[%emt 0:00:05]} Nc6 {[%emt 0:00:07]} 3. d4 {[%emt 0:00:06]} exd4 {[%emt 0:00:08]} 4. Nxd4 {[%emt 0:00:07]} Qf6 {[%emt 0:00:10]} 5. Be3 {[%emt 0:00:05]} Bc5 {[%emt 0:00:06]} 6. c3 {[%emt 0:00:08]} d6 {[%emt 0:00:06]} 7. Be2 {[%emt 0:00:06]} Qg6 {[%emt 0:00:33]} 8. O-O {[%emt 0:00:09]} Nf6 {[%emt 0:00:12]} 9. f3 {[%emt 0:00:17]} d5 {[%emt 0:03:58]} 10. Qd2 {[%emt 0:00:23]} O-O {[%emt 0:07:29]} 11. Nxc6 {[%emt 0:01:34]} Bxe3+ {[%emt 0:00:06]} 12. Qxe3 {[%emt 0:00:08]} bxc6 {[%emt 0:00:06]} 13. e5 {[%emt 0:00:05]} Re8 {[%emt 0:01:31]} 14. Nd2 {[%emt 0:04:09]} Bf5 {[%emt 0:05:34]} 15. f4 {[%emt 0:02:06]} Nd7 {[%emt 0:08:14]} 16. Nf3 {[%emt 0:12:38]} Qh6 {[%emt 0:00:15]} 17. Rad1 {[%emt 0:11:27]} f6 {[%emt 0:14:43]} 18. Nd4 {[%emt 0:02:47]} Be4 {[%emt 0:00:59]} 19. e6 {[%emt 0:05:59]} Nf8 {[%emt 0:01:03]} 20. e7 {[%emt 0:02:37]} Ng6 {[%emt 0:03:16]} 21. Nxc6 {[%emt 0:03:32]} Nxe7 {[%emt 0:00:27]} 22. Nxe7+ {[%emt 0:01:28]} Rxe7 {[%emt 0:00:04]} 23. Qc5 {[%emt 0:00:59]} Re6 {[%emt 0:19:32]} 24. Rxd5 {[%emt 0:05:22]} Qg6 {[%emt 0:13:35]} 25. Rf2 {[%emt 0:06:29]} f5 {[%emt 0:06:33]} 26. Rd7 {[%emt 0:03:32]} Bc6 {[%emt 0:02:01]} 27. Rd1 {[%emt 0:05:06]} Kh8 {[%emt 0:00:37]} 28. Bf3 {[%emt 0:04:07]} Bxf3 {[%emt 0:00:36]} 29. Rxf3 {[%emt 0:00:08]} h6 {[%emt 0:01:58]} 30. Qxc7 {[%emt 0:05:11]} Re2 {[%emt 0:01:21]} 31. Rf2 {[%emt 0:01:55]} Rxf2 {[%emt 0:02:43]} 32. Kxf2 {[%emt 0:01:00]} Qg4 {[%emt 0:00:17]} 33. Rd8+ {[%emt 0:00:44]} Rxd8 {[%emt 0:00:05]} 34. Qxd8+ {[%emt 0:00:06]} Kh7 {[%emt 0:00:07]} 35. Qd2 {[%emt 0:00:36]} g5 {[%emt 0:00:27]} 36. fxg5 {[%emt 0:00:12]} hxg5 {[%emt 0:01:46]} 37. Qe3 {[%emt 0:00:50]} Kg6 {[%emt 0:00:20]} 38. Qe6+ {[%emt 0:01:02]} Kg7 {[%emt 0:00:28]} 39. Qd7+ {[%emt 0:00:05]} Kg6 {[%emt 0:00:33]} 40. Qc6+ {[%emt 0:00:05]} Kg7 {[%emt 0:01:06]} 41. Qb7+ {[%emt 0:00:07]} Kg6 {[%emt 0:00:28]} 42. Qa6+ {[%emt 0:00:04]} Kg7 {[%emt 0:00:55]} 43. Qxa7+ {[%emt 0:00:05]} Kg6 {[%emt 0:00:11]} 44. Qb6+ {[%emt 0:00:09]} Kf7 {[%emt 0:01:06]} 45. Qc7+ {[%emt 0:01:03]} Kg6 {[%emt 0:00:10]} 46. Qc6+ {[%emt 0:01:25]} Kg7 {[%emt 0:00:10]} 47. Qf3 {[%emt 0:00:31]} Qh4+ {[%emt 0:00:18]} 48. Qg3 {[%emt 0:00:06]} Qh5 {[%emt 0:00:29]} 49. h4 {[%emt 0:00:12]} g4 {[%emt 0:00:24]} 50. Qe5+ {[%emt 0:00:05]} Kf7 {[%emt 0:00:53]} 51. Qc7+ {[%emt 0:00:13]} Ke6 {[%emt 0:00:16]} 52. Qc8+ {[%emt 0:00:56]} Ke5 {[%emt 0:00:25]} 53. Qb8+ {[%emt 0:00:17]} Ke4 {[%emt 0:00:21]} 54. g3 {[%emt 0:00:31]} Qh6 {[%emt 0:01:17]} 55. Qe8+ {[%emt 0:00:38]} Kd5 {[%emt 0:00:25]} 56. Qd8+ {[%emt 0:00:40]} Ke4 {[%emt 0:00:49]} 57. Qd4# {[%emt 0:24:28]} 1-0

[Event "Asian Amateur-ch Open 2022"]
[Site "Muscat"]
[Date "2022.10.04"]
[Round "8.8"]
[White "Reyes, Danilo G."]
[Black "Sharma Pankaj"]
[Result "0-1"]
[ECO "A08"]
[WhiteElo "1584"]
[BlackElo "1764"]
[Annotator "NA RC COMBH"]
[PlyCount "82"]
[EventDate "2022.09.29"]
[EventType "swiss"]
[EventCountry "OMN"]
[SourceTitle "playchess.com"]
[Source "ChessBase"]
[SourceQuality "1"]
[TimeControl "5400+30"]

1. Nf3 {[%emt 0:00:08]} Nf6 {[%emt 0:00:06]} 2. g3 {[%emt 0:00:05]} g6 {[%emt 0:00:05]} 3. Bg2 {[%emt 0:00:04]} Bg7 {[%emt 0:00:07]} 4. O-O {[%emt 0:00:06]} O-O {[%emt 0:01:11]} 5. d3 {[%emt 0:00:04]} d5 {[%emt 0:00:50]} 6. Nbd2 {[%emt 0:00:16]} c5 {[%emt 0:02:51]} 7. c4 {[%emt 0:00:39]} d4 {[%emt 0:06:55]} 8. b4 {[%emt 0:05:44]} cxb4 {[%emt 0:00:04]} 9. a3 {[%emt 0:00:49]} Nc6 {[%emt 0:01:46]} 10. Nb3 {[%emt 0:03:12]} bxa3 {[%emt 0:02:39]} 11. Rxa3 {[%emt 0:03:09]} e5 {[%emt 0:00:57]} 12. Bd2 {[%emt 0:03:54]} e4 {[%emt 0:18:56]} 13. Ng5 {[%emt 0:14:40]} Qe7 {[%emt 0:01:53]} 14. c5 {[%emt 0:03:52]} e3 {[%emt 0:01:05]} 15. fxe3 {[%emt 0:01:10]} Ng4 {[%emt 0:06:50]} 16. e4 {[%emt 0:03:06]} Bh6 {[%emt 0:01:43]} 17. Qc1 {[%emt 0:04:24]} f6 {[%emt 0:04:09]} 18. Nf3 {[%emt 0:01:49]} Ne3 {[%emt 0:09:16]} 19. Nbxd4 {[%emt 0:01:12]} Nxd4 {[%emt 0:02:36]} 20. Nxd4 {[%emt 0:00:28]} Nxf1 {[%emt 0:13:49]} 21. Bxh6 {[%emt 0:00:08]} Rd8 {[%emt 0:00:23]} 22. Qc4+ {[%emt 0:00:24]} Qf7 {[%emt 0:00:36]} 23. Qxf7+ {[%emt 0:06:54]} Kxf7 {[%emt 0:00:02]} 24. Nf3 {[%emt 0:01:49]} Nxg3 {[%emt 0:00:27]} 25. hxg3 {[%emt 0:00:19]} g5 {[%emt 0:00:04]} 26. Nxg5+ {[%emt 0:04:06]} fxg5 {[%emt 0:03:04]} 27. Bxg5 {[%emt 0:00:09]} Rd4 {[%emt 0:00:31]} 28. Bf4 {[%emt 0:02:43]} Rb4 {[%emt 0:00:16]} 29. Kf2 {[%emt 0:00:07]} a5 {[%emt 0:02:45]} 30. Bd6 {[%emt 0:00:24]} Rb2 {[%emt 0:01:57]} 31. Bf3 {[%emt 0:00:36]} a4 {[%emt 0:00:56]} 32. e5 {[%emt 0:02:02]} Be6 {[%emt 0:00:48]} 33. Bxb7 {[%emt 0:01:10]} Rxb7 {[%emt 0:00:10]} 34. e4 {[%emt 0:01:44]} Rb3 {[%emt 0:00:25]} 35. c6 {[%emt 0:00:29]} Rxa3 {[%emt 0:00:23]} 36. Bxa3 {[%emt 0:00:08]} Rc8 {[%emt 0:00:35]} 37. d4 {[%emt 0:00:04]} Rxc6 {[%emt 0:00:07]} 38. d5 {[%emt 0:02:07]} Rc2+ {[%emt 0:00:01]} 39. Ke1 {[%emt 0:00:58]} Bg4 {[%emt 0:00:04]} 40. e6+ {[%emt 0:00:18]} Bxe6 {[%emt 0:01:49]} 41. dxe6+ {[%emt 0:00:19]} Kxe6 {[%emt 0:00:02]} 0-1

[Event "Asian Amateur-ch Open 2022"]
[Site "Muscat"]
[Date "2022.10.04"]
[Round "8.9"]
[White "Ranjith, R.k."]
[Black "Hamdan Edrees, Alhamed"]
[Result "1-0"]
[ECO "D00"]
[WhiteElo "1706"]
[BlackElo "1467"]
[Annotator "NA RC COMBH"]
[PlyCount "89"]
[EventDate "2022.09.29"]
[EventType "swiss"]
[EventCountry "OMN"]
[SourceTitle "playchess.com"]
[Source "ChessBase"]
[SourceQuality "1"]
[TimeControl "5400+30"]

1. Nc3 {[%emt 0:00:22]} c5 {[%emt 0:00:15]} 2. Nf3 {[%emt 0:00:11]} d5 {[%emt 0:00:19]} 3. d4 {[%emt 0:00:12]} Nc6 {[%emt 0:00:22]} 4. e4 {[%emt 0:03:23]} dxe4 {[%emt 0:00:56]} 5. Nxe4 {[%emt 0:01:39]} cxd4 {[%emt 0:00:14]} 6. Bc4 {[%emt 0:00:27]} Bg4 {[%emt 0:01:16]} 7. Bxf7+ {[%emt 0:00:11]} Kxf7 {[%emt 0:00:00]} 8. Nfg5+ {[%emt 0:00:03]} Ke8 {[%emt 0:00:28]} 9. Qxg4 {[%emt 0:00:30]} Nf6 {[%emt 0:00:30]} 10. Qe6 {[%emt 0:00:30]} Qa5+ {[%emt 0:00:30]} 11. Bd2 {[%emt 0:00:30]} Qe5 {[%emt 0:00:30]} 12. Qf7+ {[%emt 0:00:30]} Kd7 {[%emt 0:00:30]} 13. f3 {[%emt 0:00:30]} h6 {[%emt 0:00:30]} 14. f4 {[%emt 0:00:30]} Qf5 {[%emt 0:00:30]} 15. Nxf6+ {[%emt 0:00:30]} gxf6 {[%emt 0:00:30]} 16. Nf3 {[%emt 0:33:23]} Qe4+ {[%emt 0:08:36]} 17. Kf2 {[%emt 0:00:30]} Nd8 {[%emt 0:00:30]} 18. Qb3 {[%emt 0:00:30]} Rc8 {[%emt 0:00:30]} 19. Rhe1 {[%emt 0:00:30]} Qc6 {[%emt 0:00:30]} 20. Nxd4 {[%emt 0:00:30]} Qc5 {[%emt 0:00:30]} 21. Be3 {[%emt 0:00:30]} e5 {[%emt 0:00:30]} 22. Ne2 {[%emt 0:21:14]} Qxc2 {[%emt 0:11:36]} 23. Qd5+ {[%emt 0:00:30]} Bd6 {[%emt 0:00:16]} 24. Rac1 {[%emt 0:00:12]} Qxb2 {[%emt 0:00:47]} 25. Rxc8 {[%emt 0:00:12]} Kxc8 {[%emt 0:00:36]} 26. Qxd6 {[%emt 0:00:15]} Nc6 {[%emt 0:00:06]} 27. Qxf6 {[%emt 0:03:42]} Re8 {[%emt 0:00:06]} 28. Qf7 {[%emt 0:00:25]} Re7 {[%emt 0:01:00]} 29. Qb3 {[%emt 0:00:18]} Qxb3 {[%emt 0:00:52]} 30. axb3 {[%emt 0:00:02]} Nb4 {[%emt 0:00:10]} 31. Rd1 {[%emt 0:02:00]} Rf7 {[%emt 0:00:21]} 32. Kf3 {[%emt 0:00:33]} Nc6 {[%emt 0:00:12]} 33. Rd6 {[%emt 0:01:22]} exf4 {[%emt 0:00:20]} 34. Bxf4 {[%emt 0:00:30]} Ne5+ {[%emt 0:00:13]} 35. Ke4 {[%emt 0:00:14]} Ng4 {[%emt 0:00:04]} 36. h3 {[%emt 0:07:05]} Re7+ {[%emt 0:00:19]} 37. Kf3 {[%emt 0:00:13]} Ne5+ {[%emt 0:00:16]} 38. Bxe5 {[%emt 0:00:36]} Rxe5 {[%emt 0:00:05]} 39. Rxh6 {[%emt 0:00:13]} Rb5 {[%emt 0:00:05]} 40. Nd4 {[%emt 0:00:09]} Rd5 {[%emt 0:00:11]} 41. Ke4 {[%emt 0:00:02]} Rg5 {[%emt 0:00:21]} 42. g4 {[%emt 0:00:15]} Kd7 {[%emt 0:00:11]} 43. Rh7+ {[%emt 0:00:02]} Kc8 {[%emt 0:00:15]} 44. Nf5 {[%emt 0:00:27]} Kb8 {[%emt 0:00:29]} 45. Rg7 {[%emt 0:00:05]} 1-0

[Event "Asian Amateur-ch Open 2022"]
[Site "Muscat"]
[Date "2022.10.04"]
[Round "8.10"]
[White "Musallam Salim Al Aamri"]
[Black "Shelke Omkar"]
[Result "0-1"]
[ECO "B33"]
[WhiteElo "1680"]
[BlackElo "1460"]
[Annotator "NA RC COMBH"]
[PlyCount "88"]
[EventDate "2022.09.29"]
[EventType "swiss"]
[EventCountry "OMN"]
[SourceTitle "playchess.com"]
[Source "ChessBase"]
[SourceQuality "1"]
[TimeControl "5400+30"]

1. e4 {[%emt 0:00:02]} c5 {[%emt 0:00:11]} 2. Nf3 {[%emt 0:01:20]} Nc6 {[%emt 0:02:31]} 3. d4 {[%emt 0:00:41]} cxd4 {[%emt 0:00:03]} 4. Nxd4 {[%emt 0:00:14]} Nf6 {[%emt 0:09:14]} 5. Nc3 {[%emt 0:00:37]} Qa5 {[%emt 0:00:03]} 6. Nb3 {[%emt 0:05:24]} Qd8 {[%emt 0:00:22]} 7. g3 {[%emt 0:00:46]} e6 {[%emt 0:05:12]} 8. Bg2 {[%emt 0:00:40]} Be7 {[%emt 0:00:28]} 9. O-O {[%emt 0:04:16]} d6 {[%emt 0:00:32]} 10. Re1 {[%emt 0:01:36]} O-O {[%emt 0:02:08]} 11. Be3 {[%emt 0:03:05]} a6 {[%emt 0:02:21]} 12. Qe2 {[%emt 0:00:47]} Qc7 {[%emt 0:01:02]} 13. a4 {[%emt 0:02:41]} Ne5 {[%emt 0:04:23]} 14. a5 {[%emt 0:08:04]} Nc4 {[%emt 0:02:12]} 15. Bc1 {[%emt 0:00:16]} Bd7 {[%emt 0:03:38]} 16. Rd1 {[%emt 0:09:59]} Rac8 {[%emt 0:01:47]} 17. Rd4 {[%emt 0:05:12]} e5 {[%emt 0:09:41]} 18. Rd1 {[%emt 0:04:50]} Be6 {[%emt 0:06:20]} 19. h3 {[%emt 0:08:23]} Rfd8 {[%emt 0:07:53]} 20. Kh2 {[%emt 0:08:08]} Bf8 {[%emt 0:04:59]} 21. Qf3 {[%emt 0:03:05]} h6 {[%emt 0:06:12]} 22. Bf1 {[%emt 0:03:38]} Kh7 {[%emt 0:03:33]} 23. Bxc4 {[%emt 0:02:57]} Qxc4 {[%emt 0:01:37]} 24. Be3 {[%emt 0:03:10]} d5 {[%emt 0:07:01]} 25. exd5 {[%emt 0:09:19]} Nxd5 {[%emt 0:01:07]} 26. Bd2 {[%emt 0:03:16]} f5 {[%emt 0:04:37]} 27. Re1 {[%emt 0:02:38]} Qc7 {[%emt 0:06:15]} 28. Nxd5 {[%emt 0:02:07]} Bxd5 {[%emt 0:00:05]} 29. Qxf5+ {[%emt 0:02:09]} g6 {[%emt 0:01:04]} 30. Qg4 {[%emt 0:02:45]} Bxb3 {[%emt 0:01:00]} 31. Bc3 {[%emt 0:00:14]} Bxc2 {[%emt 0:02:05]} 32. Bxe5 {[%emt 0:02:49]} Qd7 {[%emt 0:01:36]} 33. Qf3 {[%emt 0:00:45]} Bg7 {[%emt 0:00:52]} 34. Bxg7 {[%emt 0:00:58]} Qxg7 {[%emt 0:02:20]} 35. Re6 {[%emt 0:00:30]} Rf8 {[%emt 0:02:25]} 36. Qe2 {[%emt 0:00:17]} Bf5 {[%emt 0:00:19]} 37. Re3 {[%emt 0:00:45]} Rc2 {[%emt 0:01:00]} 38. Qe1 {[%emt 0:00:13]} Bd7 {[%emt 0:00:32]} 39. Re2 {[%emt 0:00:22]} Rxe2 {[%emt 0:00:19]} 40. Qxe2 {[%emt 0:00:01]} Qf7 {[%emt 0:00:06]} 41. f4 {[%emt 0:01:27]} Bc6 {[%emt 0:00:40]} 42. Re1 {[%emt 0:00:28]} Qd5 {[%emt 0:01:00]} 43. Qe7+ {[%emt 0:00:15]} Rf7 {[%emt 0:00:19]} 44. Qe2 {[%emt 0:00:01]} Rd7 {[%emt 0:00:14]} 0-1

[Event "Asian Amateur-ch Open 2022"]
[Site "Muscat"]
[Date "2022.10.04"]
[Round "8.11"]
[White "Vijay Chauhan"]
[Black "Muhammed, Zahid"]
[Result "1-0"]
[ECO "D02"]
[WhiteElo "1526"]
[BlackElo "1677"]
[Annotator "NA RC COMBH"]
[PlyCount "45"]
[EventDate "2022.09.29"]
[EventType "swiss"]
[EventCountry "OMN"]
[SourceTitle "playchess.com"]
[Source "ChessBase"]
[SourceQuality "1"]
[TimeControl "5400+30"]

1. d4 {[%emt 0:00:03]} Nf6 {[%emt 0:00:16]} 2. Nf3 {[%emt 0:00:05]} e6 {[%emt 0:00:20]} 3. Bf4 {[%emt 0:00:07]} d5 {[%emt 0:00:23]} 4. e3 {[%emt 0:00:09]} Bd6 {[%emt 0:00:07]} 5. Bg3 {[%emt 0:00:03]} O-O {[%emt 0:00:25]} 6. Bd3 {[%emt 0:00:25]} c5 {[%emt 0:00:52]} 7. c3 {[%emt 0:00:12]} Nc6 {[%emt 0:00:49]} 8. Nbd2 {[%emt 0:00:15]} cxd4 {[%emt 0:00:12]} 9. exd4 {[%emt 0:00:24]} Qc7 {[%emt 0:01:08]} 10. O-O {[%emt 0:07:38]} Bxg3 {[%emt 0:01:44]} 11. hxg3 {[%emt 0:03:34]} Re8 {[%emt 0:00:21]} 12. Re1 {[%emt 0:01:57]} Bd7 {[%emt 0:01:28]} 13. Ne5 {[%emt 0:01:42]} Rac8 {[%emt 0:02:40]} 14. g4 {[%emt 0:03:33]} h6 {[%emt 0:02:34]} 15. f4 {[%emt 0:07:48]} g5 {[%emt 0:08:30]} 16. Qf3 {[%emt 0:12:55]} Nxe5 {[%emt 0:08:10]} 17. fxe5 {[%emt 0:05:24]} Nh7 {[%emt 0:03:54]} 18. Bxh7+ {[%emt 0:00:32]} Kxh7 {[%emt 0:00:15]} 19. Qxf7+ {[%emt 0:00:03]} Kh8 {[%emt 0:00:45]} 20. Qg6 {[%emt 0:00:41]} Qd8 {[%emt 0:09:19]} 21. Qxh6+ {[%emt 0:00:44]} Kg8 {[%emt 0:00:09]} 22. Qg6+ {[%emt 0:00:03]} Kh8 {[%emt 0:00:27]} 23. Re3 {[%emt 0:00:03]} 1-0

[Event "Asian Amateur-ch Open 2022"]
[Site "Muscat"]
[Date "2022.10.04"]
[Round "8.13"]
[White "Rafee, Mohd Hayel"]
[Black "Atharv Bansal"]
[Result "0-1"]
[ECO "B42"]
[WhiteElo "1941"]
[BlackElo "1164"]
[Annotator "TA"]
[PlyCount "66"]
[EventDate "2022.09.29"]
[EventType "swiss"]
[EventCountry "OMN"]
[SourceTitle "playchess.com"]
[Source "ChessBase"]
[SourceQuality "1"]
[TimeControl "5400+30"]

{[%evp 11,66,33,31,19,56,33,59,0,5,-37,-19,-13,-20,-63,-44,-106,-115,-277,-275,-294,-287,-384,-390,-392,-357,-385,-393,-844,-847,-913,-901,-1449,-1475,-2220,-1985,-1793,-1647,-1883,-907,-1854,-1840,-1934,-1719,-3339,-2837,-2696,-2737,-3662,-3800,-29989,-29990,-29993,-29994,-29994,-29995,-29995,-29993]} 1. e4 {[%emt 0:00:03]} c5 {[%emt 0:00:10]} 2. Nf3 {[%emt 0:00:05]} e6 {[%emt 0:00:13]} 3. d4 {[%emt 0:00:06]} cxd4 {[%emt 0:00:13]} 4. Nxd4 {[%emt 0:00:06]} a6 {[%emt 0:00:12]} 5. Bd3 {[%emt 0:01:12]} Qc7 {[%emt 0:00:46]} 6. O-O {[%emt 0:00:14]} Nf6 {[%emt 0:00:49]} 7. c3 {[%emt 0:00:31] B42: Sicilian: Kan Variation: 5 Bd3.} b5 {[%emt 0:02:18] [#]} 8. a4 $146 {[%emt 0:00:29]} ({Predecessor:} 8. Qe2 d6 9. a4 bxa4 10. Rxa4 Bb7 11. Nd2 Be7 12. N2b3 O-O 13. Na5 Bc8 14. Bd2 Nbd7 {1-0 (61) Amos,F (2171)-Forsaa,E (1770) Caleta 2012}) 8... bxa4 {[%emt 0:01:29]} 9. e5 {[%emt 0:01:52]} ({White should try} 9. Bg5 $14) 9... Qxe5 $11 {[%emt 0:11:37]} 10. Nd2 {[%emt 0:05:27]} Bb7 {[%emt 0:03:50][%cal Oa4a3]} 11. Nc4 {[%emt 0:02:55] Prevents a3.} Qc7 {[%emt 0:04:55][%cal Oa4a3]} 12. Re1 {[%emt 0:07:08]} Nc6 {[%emt 0:03:10]} 13. Nf5 {[%emt 0:08:15]} (13. Nxc6 $15 Bxc6 14. g3) 13... d5 $17 {[%emt 1:07:18]} 14. Qxa4 {[%emt 0:26:26]} (14. Nd2 $17 {was worth a try.}) 14... dxc4 $19 {[%emt 0:00:00]} 15. Bxc4 {[%emt 0:01:24]} Ng4 {[%emt 0:00:00]} 16. Bxe6 {[%emt 0:16:29]} Qxh2+ {[%emt 0:00:00]} ({Inferior is} 16... fxe6 17. Rxe6+ Kf7 18. Qxg4 $11) 17. Kf1 {[%emt 0:00:32] [#]} Qh1+ $1 {[%emt 0:00:00]} ({Don't go for} 17... fxe6 $2 18. Rxe6+ Kd7 19. Qxg4 $17) 18. Ke2 {[%emt 0:00:07]} Qxg2 {[%emt 0:00:00]} 19. Bxf7+ {[%emt 0:21:45]} (19. Nxg7+ Bxg7 20. Qxg4 Qxg4+ 21. Bxg4) 19... Kxf7 {[%emt 0:00:00]} 20. Qc4+ {[%emt 0:02:14]} Kf6 {[%emt 0:00:00]} 21. Be3 {[%emt 0:02:13]} Nce5 {[%emt 0:00:00]} 22. Qc7 {[%emt 0:00:38]} Qf3+ {[%emt 0:00:00]} 23. Kd2 {[%emt 0:00:17]} Qxf5 {[%emt 0:00:00]} 24. Bd4 {[%emt 0:01:20]} Qd3+ {[%emt 0:00:00]} 25. Kc1 {[%emt 0:00:01]} Be4 {[%emt 0:00:00][%csl Ge4][%cal Rd3c2] [#]} 26. Qb6+ {[%emt 0:01:05]} Kg5 {[%emt 0:00:00][%csl Ge4][%cal Rd3c2]} 27. f4+ {[%emt 0:00:29]} Kxf4 {[%emt 0:00:00][%csl Ge4][%cal Rd3c2]} 28. Bxe5+ {[%emt 0:00:21]} Nxe5 {[%emt 0:00:00][%csl Ge4][%cal Rd3c2]} 29. Qf2+ {[%emt 0:00:15]} Nf3 {[%emt 0:00:00] ( -> ...Rd8)} 30. Re2 {[%emt 0:00:55]} Rd8 {[%emt 0:00:00][%csl Gd8][%cal Rd3d1] Black mates.} 31. Qf1 {[%emt 0:00:30]} Bc5 {[%emt 0:00:00]} 32. Rxe4+ {[%emt 0:00:35]} Qxe4 {[%emt 0:00:00][%cal Rc5e3]} 33. b3 {[%emt 0:00:20]} Qe3+ {[%emt 0:00:00] White did not feel at home in the position after the opening.  Weighted Error Value: White=1.50/Black=0.56} 0-1